bitfinex/quotes_ETHUSD_20250329
["timestamp","ask_amount","ask_price","bid_price","bid_amount"]
[1743260162980,8.39811,1852.5,1852.3,5.081]
[1743260163181,3.0,1852.5,1852.3,5.081]
[1743260163970,6.02435977,1852.5,1852.3,5.081]
[1743260165773,3.78515977,1852.4,1852.1,5.39916]
[1743260166096,0.7608,1852.4,1852.3,5.082]
[1743260167096,3.78515977,1852.4,1852.3,5.082]
[1743260167257,3.93484182,1852.4,1852.3,5.082]
[1743260167664,0.91048205,1852.4,1852.3,5.082]
[1743260167990,0.14968205,1852.4,1852.3,5.082]
[1743260169207,3.17404182,1852.4,1852.3,5.082]
[1743260169795,0.14968205,1852.4,1852.3,5.082]
[1743260170291,3.17404182,1852.4,1852.3,5.082]
[1743260170481,9.33336182,1852.4,1852.0,5.39955]
[1743260170799,3.02435977,1852.3,1852.1,5.082]
[1743260171167,0.14921986,1852.2,1852.1,5.082]
[1743260171583,0.14921986,1852.2,1852.1,10.48127]
[1743260171790,3.78515977,1852.4,1852.1,12.840641]
[1743260172092,0.14945097,1852.3,1852.1,12.840641]
[1743260172511,3.78515977,1852.4,1852.1,12.840641]
[1743260172797,9.18361977,1852.4,1852.1,5.082]
[1743260172998,0.14945097,1852.3,1852.1,5.082]
[1743260173463,9.18361977,1852.4,1852.1,5.082]
[1743260173669,0.14921986,1852.2,1852.1,5.082]
[1743260173893,9.18361977,1852.4,1852.1,5.082]
[1743260174193,3.78515977,1852.4,1852.1,10.4812]
[1743260174398,0.14945097,1852.3,1852.1,10.4812]
[1743260174572,3.02435977,1852.4,1852.1,10.4812]
[1743260174779,0.14945097,1852.3,1852.1,6.670058]
[1743260174990,3.0,1852.5,1852.2,6.17004]
[1743260175193,0.14968205,1852.4,1852.2,6.17004]
[1743260175786,0.14968205,1852.4,1852.2,11.56888]
[1743260176086,0.14968205,1852.4,1852.2,6.17004]
[1743260176292,0.14968205,1852.4,1852.2,11.5689]
[1743260178503,0.14968205,1852.4,1852.3,5.39869]
[1743260181316,0.14968205,1852.4,1852.2,6.17004]
[1743260181623,3.02435977,1852.3,1852.0,5.39945]
[1743260181787,3.02435977,1852.2,1852.1,5.083]
[1743260181983,0.14743661,1852.2,1852.1,5.083]
[1743260182410,9.23796977,1852.4,1852.1,5.083]
[1743260182605,0.14743661,1852.2,1852.1,10.48227]
[1743260182913,3.83945977,1852.4,1852.1,10.48227]
[1743260183212,0.8151,1852.4,1852.2,5.39889]
[1743260183722,3.02435977,1852.3,1852.1,5.083]
[1743260185819,3.02435977,1852.3,1852.0,5.39935]
[1743260186016,3.02435977,1852.2,1852.1,5.083]
[1743260186312,3.02435977,1852.3,1852.1,5.083]
[1743260187105,3.02435977,1852.2,1851.9,5.39984]
[1743260187314,3.02435977,1852.2,1852.1,5.083]
[1743260188124,0.8151,1852.1,1851.8,5.40013]
[1743260188296,3.02435977,1852.0,1851.9,5.083]
[1743260188505,5.4,1851.9,1851.5,6.21189]
[1743260188819,3.02435977,1851.7,1851.6,5.083]
[1743260188989,3.83945977,1851.8,1851.6,5.083]
[1743260190818,3.02435977,1851.7,1851.6,5.083]
[1743260190994,9.34876375,1851.7,1851.3,6.21247]
[1743260191199,3.02435977,1851.6,1851.4,5.083]
[1743260191388,3.02435977,1851.7,1851.4,10.48426]
[1743260192524,9.23963977,1851.8,1851.4,15.88535]
[1743260192709,9.23963977,1851.8,1851.4,10.48409]
[1743260192909,9.23963977,1851.8,1851.4,15.88523]
[1743260193111,9.23963977,1851.8,1851.4,10.48409]
[1743260193305,3.83945977,1851.8,1851.5,5.4009]
[1743260193589,3.02435977,1851.9,1851.5,5.4009]
[1743260193794,15.03173227,1852.0,1851.5,5.4009]
[1743260193795,3.02435977,1851.8,1851.5,10.80171]
[1743260195529,3.02435977,1851.8,1851.5,5.40081]
[1743260196143,3.0,1852.1,1851.8,5.39998]
[1743260196291,6.02435977,1852.1,1851.8,10.48298]
[1743260196721,3.02435977,1852.0,1851.8,5.083]
[1743260197102,3.02435977,1851.9,1851.8,5.083]
[1743260197322,6.15164709,1851.9,1851.8,5.083]
[1743260198116,3.12728732,1851.9,1851.8,5.083]
[1743260199821,3.12728732,1851.9,1851.8,10.48315]
[1743260200719,0.12728732,1851.9,1851.8,10.48315]
[1743260201122,6.02435977,1852.1,1851.8,10.48315]
[1743260201319,0.12765781,1851.9,1851.8,10.48315]
[1743260201516,6.02435977,1852.1,1851.8,10.48315]
[1743260201711,0.12769149,1851.9,1851.8,10.48315]
[1743260201908,6.02435977,1852.1,1851.8,10.48315]
[1743260202107,0.12789358,1851.9,1851.8,10.48315]
[1743260202625,6.02435977,1852.1,1851.8,10.48315]
[1743260202827,0.12789358,1851.9,1851.8,10.48315]
[1743260203132,6.02435977,1852.1,1851.8,10.48315]
[1743260203434,7.78950675,1852.1,1851.8,10.48315]
[1743260203632,0.12812486,1852.0,1851.8,10.48315]
[1743260203828,0.12812486,1852.0,1851.8,5.083]
[1743260204033,3.15248463,1852.0,1851.8,5.083]
[1743260204233,3.15248463,1852.0,1851.8,10.48313]
[1743260206333,3.02435977,1851.9,1851.8,5.083]
[1743260206720,3.15225054,1851.9,1851.8,5.083]
[1743260207235,0.12789077,1851.9,1851.8,5.083]
[1743260208106,0.12789077,1851.9,1851.8,10.48315]
[1743260208530,0.12789077,1851.9,1851.8,5.083]
[1743260208730,3.15225054,1851.9,1851.6,5.40063]
[1743260208935,3.02435977,1851.8,1851.7,5.083]
[1743260209102,3.02435977,1851.8,1851.6,10.48363]
[1743260209306,0.12765946,1851.8,1851.6,10.48363]
[1743260209737,3.02435977,1851.9,1851.6,10.48363]
[1743260209939,0.12737619,1851.7,1851.6,15.88416]
[1743260210123,3.02435977,1851.9,1851.7,5.40037]
[1743260210442,3.02435977,1851.9,1851.6,10.48365]
[1743260211630,3.02435977,1851.9,1851.6,15.88425]
[1743260211836,3.02435977,1851.9,1851.6,10.4836]
[1743260212241,0.12760753,1851.8,1851.6,10.4836]
[1743260212744,3.02435977,1851.9,1851.6,10.4836]
[1743260212947,0.12737619,1851.7,1851.6,10.4836]
[1743260213142,3.02435977,1851.9,1851.6,10.4836]
[1743260213349,3.93043596,1851.7,1851.1,6.27264]
[1743260213551,3.02435977,1851.5,1851.3,5.083]
[1743260213931,0.12607294,1851.4,1851.3,5.083]
[1743260214134,0.12607294,1851.4,1851.1,0.8706]
[1743260214341,3.15043271,1851.4,1851.2,10.48475]
[1743260214528,3.15043271,1851.4,1851.3,5.083]
[1743260217661,5.4019,1851.2,1851.1,0.05]
[1743260217861,8.42625977,1851.2,1851.1,0.05]
[1743260218061,8.55085919,1851.2,1851.1,0.05]
[1743260219066,9.32955919,1851.2,1851.1,0.05]
[1743260219421,9.73744066,1851.2,1851.1,0.05]
[1743260219622,11.55134573,1851.2,1851.1,0.05]
[1743260222947,3.92765919,1851.2,1851.1,0.05]
[1743260223151,9.32955919,1851.2,1851.1,0.05]
[1743260226838,3.92765919,1851.2,1851.1,0.05]
[1743260227238,9.32955919,1851.2,1851.1,0.05]
[1743260227563,3.92765919,1851.2,1851.1,0.05]
[1743260228425,4.33122568,1851.2,1851.1,0.05]
[1743260229453,3.14895919,1851.2,1851.1,0.05]
[1743260236339,3.14895919,1851.2,1851.1,5.45219]
[1743260236678,3.14895919,1851.2,1851.1,0.05]
[1743260237273,3.14895919,1851.2,1851.1,5.45219]
[1743260237683,3.14895919,1851.2,1851.1,0.05]
[1743260238147,9.16575511,1851.2,1851.1,0.05]
[1743260238354,3.76385511,1851.2,1851.1,0.05]
[1743260239057,3.14895919,1851.2,1851.1,0.05]
[1743260239373,3.14895919,1851.2,1851.1,5.45219]
[1743260239954,0.12459942,1851.2,1851.1,5.45219]
[1743260240396,0.12459942,1851.2,1851.1,10.53719]
[1743260240688,6.02435977,1851.4,1851.2,5.40181]
[1743260240885,3.02435977,1851.4,1851.2,5.40181]
[1743260241389,3.02435977,1851.3,1851.1,10.53705]
[1743260242490,0.11037455,1851.2,1851.1,10.53705]
[1743260243183,3.13473432,1851.2,1851.1,10.53705]
[1743260245850,0.11037455,1851.2,1851.1,10.53705]
[1743260246247,3.02435977,1851.4,1851.2,5.40176]
[1743260246460,0.11065791,1851.3,1851.2,5.40176]
[1743260247080,0.11065791,1851.3,1851.1,15.93913]
[1743260247280,3.02435977,1851.4,1851.2,5.4019]
[1743260248854,3.02435977,1851.4,1851.1,10.53705]
[1743260249055,3.02435977,1851.4,1851.1,15.93911]
[1743260249258,3.02435977,1851.4,1851.2,5.40189]
[1743260249595,7.20286491,1851.7,1851.4,5.40104]
[1743260249795,6.02435977,1851.7,1851.6,5.40073]
[1743260249995,3.0,1851.7,1851.6,5.40073]
[1743260250568,3.0,1851.7,1851.5,10.48489]
[1743260250776,3.0,1851.7,1851.5,15.88573]
[1743260250959,3.0,1851.7,1851.5,10.48484]
[1743260251154,6.02435977,1851.7,1851.5,10.48484]
[1743260252501,6.02435977,1851.7,1851.5,10.48483]
[1743260253304,6.02435977,1851.7,1851.5,10.48481]
[1743260253602,3.0,1851.7,1851.6,5.40073]
[1743260258367,3.0,1851.7,1851.5,10.48495]
[1743260258568,6.02435977,1851.7,1851.5,5.084]
[1743260258778,6.02435977,1851.7,1851.5,10.48498]
[1743260259190,6.02435977,1851.7,1851.5,15.88579]
[1743260259394,6.02435977,1851.7,1851.6,5.40073]
[1743260260287,6.02435977,1851.7,1851.5,15.88564]
[1743260260483,6.02435977,1851.8,1851.5,15.88564]
[1743260262301,6.02435977,1851.8,1851.6,5.40069]
[1743260263705,6.02435977,1851.8,1851.5,10.48481]
[1743260263929,3.02435977,1851.7,1851.5,10.48481]
[1743260264227,3.02435977,1851.7,1851.2,6.995774]
[1743260264228,3.02435977,1851.6,1851.3,10.48442]
[1743260264379,3.02435977,1851.5,1851.3,10.48442]
[1743260264579,3.02435977,1851.5,1851.3,15.88583]
[1743260264879,3.02435977,1851.7,1851.4,10.80244]
[1743260265310,3.02435977,1851.7,1851.5,5.40094]
[1743260267208,3.02435977,1851.7,1851.4,5.40113]
[1743260268320,6.02435977,1851.8,1851.5,0.7531]
[1743260268526,6.02435977,1851.8,1851.5,11.55476]
[1743260268825,6.02435977,1851.8,1851.5,6.15387]
[1743260269310,6.02435977,1851.8,1851.5,11.55471]
[1743260269826,6.02435977,1851.8,1851.5,6.15387]
[1743260270522,3.02435977,1851.7,1851.5,6.15387]
[1743260271333,3.02435977,1851.7,1851.5,11.55471]
[1743260271511,3.02435977,1851.7,1851.5,12.8690383]
[1743260271712,6.02435977,1851.8,1851.5,7.4681983]
[1743260271919,3.02435977,1851.7,1851.4,6.989813]
[1743260272103,3.02435977,1851.6,1851.5,5.083]
[1743260272518,3.02435977,1851.6,1851.3,6.20804]
[1743260272732,3.02435977,1851.5,1851.4,5.083]
[1743260272940,3.02435977,1851.6,1851.4,5.083]
[1743260273519,3.02435977,1851.7,1851.5,5.40102]
[1743260274830,3.02435977,1851.7,1851.4,10.48413]
[1743260275038,3.02435977,1851.7,1851.4,15.8853]
[1743260275937,3.02435977,1851.7,1851.4,5.40113]
[1743260275938,3.79605977,1851.6,1851.4,5.40113]
[1743260276135,3.79605977,1851.6,1851.3,10.80318]
[1743260276436,3.79605977,1851.6,1851.3,5.40159]
[1743260277139,3.02435977,1851.5,1851.3,5.40159]
[1743260277312,3.02435977,1851.5,1851.3,10.48459]
[1743260278415,3.79605977,1851.6,1851.3,15.88604]
[1743260278642,3.79605977,1851.6,1851.4,5.40123]
[1743260279333,3.02435977,1851.7,1851.4,5.40123]
[1743260280123,8.42492977,1851.7,1851.3,16.69241]
[1743260280443,3.02435977,1851.7,1851.4,5.40119]
[1743260282140,3.02435977,1851.6,1851.3,10.48445]
[1743260283027,3.02435977,1851.6,1851.3,15.88588]
[1743260283213,3.02435977,1851.5,1851.3,10.48443]
[1743260283416,5.40054,1851.7,1851.3,10.48443]
[1743260283417,3.02435977,1851.6,1851.3,10.48443]
[1743260283614,3.02435977,1851.6,1851.3,10.48441]
[1743260283815,3.02435977,1851.6,1851.4,5.4013]
[1743260284016,3.02435977,1851.7,1851.4,5.4013]
[1743260284856,3.02435977,1851.7,1851.4,5.40118]
[1743260285059,3.02435977,1851.7,1851.5,5.40098]
[1743260285353,3.02435977,1851.7,1851.4,5.40118]
[1743260285544,3.02435977,1851.7,1851.4,10.80229]
[1743260285856,12.19622977,1851.8,1851.5,5.40098]
[1743260286027,6.79605977,1851.8,1851.5,5.40098]
[1743260286851,2.0756409,1851.7,1851.5,5.40098]
[1743260289063,2.0756409,1851.6,1851.5,5.40098]
[1743260290060,2.0756409,1851.7,1851.5,10.80182]
[1743260290352,2.0756409,1851.7,1851.5,5.40084]
[1743260290546,2.0756409,1851.6,1851.5,5.40084]
[1743260292159,2.0756409,1851.7,1851.5,5.40076]
[1743260292540,2.0756409,1851.6,1851.4,7.0945631]
[1743260292739,2.0756409,1851.6,1851.4,5.40119]
[1743260293056,2.0756409,1851.5,1851.1,0.05]
[1743260293231,2.0756409,1851.2,1851.1,0.05]
[1743260293938,2.8749409,1851.2,1851.1,0.05]
[1743260294456,8.2768409,1851.2,1851.1,0.05]
[1743260294655,9.68477508,1851.2,1851.1,0.05]
[1743260294963,10.63833547,1851.2,1851.1,0.05]
[1743260296962,3.82850129,1851.2,1851.1,0.05]
[1743260297470,3.42999222,1851.3,1851.1,0.05]
[1743260297637,8.43086129,1851.3,1851.1,0.05]
[1743260297840,3.02920129,1851.2,1851.1,0.05]
[1743260298757,3.02920129,1851.3,1851.1,0.05]
[1743260299139,6.82850129,1851.4,1851.1,5.45211]
[1743260299465,3.02920129,1851.3,1851.1,0.05]
[1743260300381,3.02920129,1851.2,1851.1,0.05]
[1743260300873,3.83960129,1851.2,1851.1,0.05]
[1743260301272,4.76372442,1851.2,1851.1,0.05]
[1743260306779,10.16562442,1851.2,1851.1,0.05]
[1743260308866,4.76372442,1851.2,1851.1,0.05]
[1743260310597,10.16562442,1851.2,1851.1,0.05]
[1743260312691,4.76372442,1851.2,1851.1,0.05]
[1743260320197,10.16562442,1851.2,1851.1,0.05]
[1743260320997,9.21343603,1851.2,1851.1,0.05]
[1743260326467,2.8874129,1851.2,1851.1,0.05]
[1743260326674,2.0770129,1851.2,1851.1,0.05]
[1743260334783,2.0770129,1851.3,1851.1,5.45219]
[1743260336113,6.06,1851.6,1851.3,5.4016]
[1743260336323,2.0770129,1851.4,1851.2,11.31374]
[1743260337207,2.0770129,1851.3,1851.2,11.31362]
[1743260338006,2.0770129,1851.4,1851.2,16.71534]
[1743260338209,2.0770129,1851.3,1851.2,11.31362]
[1743260338409,2.0770129,1851.3,1851.2,12.00094506]
[1743260338815,2.0770129,1851.4,1851.2,12.00094506]
[1743260339439,2.0770129,1851.3,1851.1,0.05]
[1743260339590,2.9021129,1851.2,1851.1,0.05]
[1743260339789,8.3040129,1851.2,1851.1,0.05]
[1743260342992,9.2563882,1851.2,1851.1,0.05]
[1743260343510,3.8544882,1851.2,1851.1,0.05]
[1743260343707,9.2563882,1851.2,1851.1,0.05]
[1743260344113,8.4312882,1851.2,1851.1,0.05]
[1743260344307,9.81459302,1851.2,1851.1,0.05]
[1743260346827,10.58849302,1851.2,1851.1,0.05]
[1743260347030,13.58849302,1851.2,1851.1,0.05]
[1743260350803,14.13019302,1851.2,1851.1,0.05]
[1743260351129,13.58849302,1851.2,1851.1,0.05]
[1743260359640,14.13019302,1851.2,1851.1,0.05]
[1743260360952,13.58849302,1851.2,1851.1,0.05]
[1743260363047,12.81459302,1851.2,1851.1,0.05]
[1743260370162,5.40452,1850.3,1850.2,0.8018]
[1743260370462,8.4339082,1850.3,1850.2,0.8018]
[1743260370760,8.4339082,1850.3,1850.1,0.05]
[1743260370761,5.40482,1850.2,1850.1,0.05]
[1743260370961,14.4635964,1850.2,1850.1,0.05]
[1743260371173,13.52903838,1850.2,1850.1,0.05]
[1743260371568,5.40598,1849.8,1849.7,0.3518]
[1743260371968,5.40573,1849.9,1849.7,0.3518]
[1743260372138,5.40598,1849.8,1849.7,0.3518]
[1743260374370,5.40657,1849.6,1849.5,0.109419]
[1743260374665,8.4359582,1849.6,1849.5,0.109419]
[1743260375237,18.3230464,1849.6,1849.5,0.109419]
[1743260375437,15.2936582,1849.6,1849.5,0.109419]
[1743260375852,14.4959582,1849.6,1849.5,0.109419]
[1743260376047,19.56965202,1849.6,1849.5,0.109419]
[1743260376251,23.11965202,1849.6,1849.5,0.109419]
[1743260376457,6.20544,1849.2,1849.1,0.05]
[1743260376659,12.2348282,1849.2,1849.1,0.05]
[1743260377169,11.4371282,1849.2,1849.1,0.05]
[1743260377746,8.4371282,1849.2,1849.1,0.05]
[1743260379175,3.0293882,1849.2,1849.1,0.05]
[1743260382977,8.4371282,1849.2,1849.1,0.05]
[1743260384746,3.0293882,1849.2,1849.1,0.05]
[1743260385150,8.4371282,1849.2,1849.1,0.05]
[1743260385377,11.74006702,1849.2,1849.1,0.05]
[1743260386772,12.46467041,1849.2,1849.1,0.05]
[1743260386979,21.37998976,1849.2,1849.1,0.05]
[1743260387175,27.98998976,1849.2,1849.1,0.05]
[1743260387377,8.4377082,1849.0,1848.9,0.07334217]
[1743260388387,9.82229202,1849.0,1848.9,0.07334217]
[1743260388760,8.4377082,1849.0,1848.9,0.07334217]
[1743260388960,8.9794082,1849.0,1848.9,0.07334217]
[1743260389161,3.0293882,1849.0,1848.9,0.07334217]
[1743260389362,8.4377082,1849.0,1848.9,0.07334217]
[1743260389757,3.0293882,1849.0,1848.9,0.07334217]
[1743260390177,8.4377082,1849.0,1848.9,0.07334217]
[1743260391390,3.0293882,1849.0,1848.9,0.07334217]
[1743260391791,5.40727,1849.4,1849.0,6.2166]
[1743260392094,3.0293882,1849.2,1849.0,6.84559422]
[1743260392555,5.40727,1849.4,1849.0,1.43749422]
[1743260392556,3.0293882,1849.4,1849.0,1.43749422]
[1743260392762,3.0293882,1849.4,1849.1,5.40788]
[1743260392960,3.0293882,1849.3,1849.1,10.58288]
[1743260393993,3.0293882,1849.2,1849.1,5.175]
[1743260394361,3.0293882,1849.2,1849.1,10.58303]
[1743260395161,3.0293882,1849.2,1849.1,5.175]
[1743260396274,3.0293882,1849.2,1849.1,10.58303]
[1743260397894,3.0293882,1849.3,1849.2,5.40774]
[1743260398512,3.0293882,1849.3,1849.1,10.58297]
[1743260398706,3.0293882,1849.2,1849.1,10.58297]
[1743260400109,3.0065482,1849.2,1849.1,10.58297]
[1743260400283,3.0293882,1849.3,1849.1,10.58297]
[1743260400790,8.4368382,1849.3,1849.1,5.175]
[1743260401309,3.0293882,1849.2,1849.1,5.175]
[1743260401700,3.0293882,1849.2,1849.0,0.8085]
[1743260403010,3.0293882,1849.2,1849.0,6.21662]
[1743260403197,3.0293882,1849.3,1849.1,5.4079]
[1743260403395,3.0293882,1849.3,1849.0,6.21666]
[1743260403598,3.0293882,1849.2,1849.0,6.21666]
[1743260404316,3.0293882,1849.2,1849.0,11.62482]
[1743260404616,3.0293882,1849.2,1849.1,5.40803]
[1743260405211,3.0293882,1849.2,1849.0,6.21666]
[1743260405818,3.0293882,1849.2,1849.0,11.62479]
[1743260406315,3.0293882,1849.4,1849.1,5.40803]
[1743260406505,3.0293882,1849.4,1849.2,5.40772]
[1743260408609,3.0293882,1849.4,1849.2,10.81528]
[1743260408988,3.0293882,1849.4,1849.1,5.40802]
[1743260409190,3.0293882,1849.3,1849.1,5.40802]
[1743260409420,3.0293882,1849.2,1849.1,5.40802]
[1743260410721,6.22206,1849.5,1849.1,12.14695332]
[1743260411039,3.0293882,1849.4,1849.2,5.40765]
[1743260411926,3.0293882,1849.4,1849.3,0.8094]
[1743260412233,5.4057,1849.9,1849.3,5.9564]
[1743260412541,3.0293882,1849.8,1849.3,5.147]
[1743260412698,3.0293882,1849.5,1849.4,5.40704]
[1743260413531,3.0293882,1849.5,1849.3,11.37982]
[1743260413693,3.0293882,1849.7,1849.5,5.40686]
[1743260414021,3.0293882,1849.8,1849.5,5.40668]
[1743260414210,3.0293882,1849.7,1849.5,5.40668]
[1743260414408,3.0293882,1849.8,1849.6,5.40657]
[1743260414588,3.0293882,1849.7,1849.5,10.81334]
[1743260414792,3.0293882,1849.7,1849.6,5.40657]
[1743260415023,3.0293882,1849.8,1849.6,5.40657]
[1743260415635,3.8444882,1850.0,1849.7,5.40628]
[1743260415840,3.0293882,1849.9,1849.7,5.40628]
[1743260417998,3.0293882,1849.9,1849.7,5.40606]
[1743260418198,3.0293882,1849.9,1849.8,5.40598]
[1743260418626,3.0293882,1849.9,1849.7,5.40606]
[1743260420622,3.0293882,1850.0,1849.7,5.40606]
[1743260421120,8.4348182,1850.0,1849.7,5.40606]
[1743260421425,3.0293882,1849.9,1849.6,16.7754]
[1743260421632,3.0293882,1849.9,1849.6,11.36884]
[1743260421797,3.0293882,1849.9,1849.6,11.36882]
[1743260422126,3.0293882,1849.9,1849.7,5.40626]
[1743260422603,3.0293882,1849.9,1849.8,5.40598]
[1743260422808,3.0293882,1849.9,1849.7,5.40608]
[1743260423308,3.8366882,1849.9,1849.7,5.40608]
[1743260423509,3.0293882,1849.8,1849.6,15.95994]
[1743260423897,3.0293882,1849.8,1849.7,5.40628]
[1743260424119,3.0293882,1849.9,1849.7,5.40628]
[1743260428909,3.8073,1850.1,1849.8,5.40598]
[1743260429099,3.0293882,1850.0,1849.8,5.40598]
[1743260429305,3.0293882,1850.0,1849.8,5.40572]
[1743260430304,3.0293882,1849.9,1849.7,0.8263]
[1743260430504,3.0293882,1849.9,1849.3,6.23364]
[1743260430505,0.8073,1849.7,1849.3,6.23364]
[1743260430705,3.0293882,1849.4,1849.1,6.23418]
[1743260430903,3.0293882,1849.3,1849.1,15.95862]
[1743260431143,3.0293882,1849.3,1849.1,10.81563]
[1743260431351,3.0293882,1849.3,1849.1,10.81566]
[1743260431509,3.0293882,1849.3,1849.2,5.40774]
[1743260431704,3.0293882,1849.6,1849.4,5.40715]
[1743260431914,7.24301525,1849.7,1849.4,10.81418]
[1743260432120,6.8366882,1849.7,1849.5,5.40683]
[1743260432438,3.0293882,1849.7,1849.5,5.40683]
[1743260432609,3.0293882,1849.7,1849.5,5.40668]
[1743260432804,3.0293882,1849.6,1849.3,5.40718]
[1743260433038,3.0293882,1849.5,1849.3,10.81442]
[1743260433202,3.0293882,1849.6,1849.3,5.40718]
[1743260433401,3.0293882,1849.6,1849.3,10.54918]
[1743260433852,3.0293882,1849.6,1849.3,15.95641]
[1743260434033,3.0293882,1849.6,1849.3,10.54918]
[1743260434849,0.92426782,1849.7,1849.3,10.54918]
[1743260434850,3.0293882,1849.7,1849.5,5.40674]
[1743260435087,6.0293882,1849.9,1849.6,5.40639]
[1743260435565,3.0293882,1849.8,1849.6,5.40639]
[1743260439066,3.0293882,1849.7,1849.5,5.40684]
[1743260439376,3.0293882,1849.6,1849.5,5.40684]
[1743260440877,8.82104264,1849.9,1849.4,10.54114]
[1743260440878,3.0293882,1849.8,1849.6,6.21959]
[1743260441177,3.0293882,1849.8,1849.7,5.40628]
[1743260442176,3.44462084,1849.9,1849.7,5.40628]
[1743260443065,6.8294882,1850.0,1849.7,5.40628]
[1743260443380,6.8294882,1850.0,1849.7,10.81239]
[1743260443583,6.8294882,1850.0,1849.8,5.40598]
[1743260444579,7.24102348,1850.0,1849.8,5.40598]
[1743260444780,3.0293882,1849.9,1849.8,5.40598]
[1743260444970,3.8294882,1850.0,1849.8,5.40598]
[1743260445278,3.0293882,1849.9,1849.8,5.40598]
[1743260447067,3.0293882,1849.9,1849.7,5.40611]
[1743260447381,3.0293882,1849.9,1849.7,10.81224]
[1743260447975,3.0293882,1849.9,1849.7,5.40611]
[1743260448902,3.0293882,1849.8,1849.5,5.40681]
[1743260449188,3.0293882,1849.8,1849.4,6.19231]
[1743260449189,3.0293882,1849.6,1849.4,5.40711]
[1743260449394,3.0293882,1849.5,1849.4,5.40711]
[1743260449575,3.0293882,1849.5,1849.3,10.53544]
[1743260449959,3.0293882,1849.5,1849.2,5.40758]
[1743260450194,3.0293882,1849.4,1849.2,10.53458]
[1743260450692,3.0293882,1849.4,1849.2,10.81512]
[1743260451083,3.0293882,1849.4,1849.3,5.40745]
[1743260451698,3.0293882,1849.5,1849.3,5.40745]
[1743260451901,6.20851,1849.7,1849.2,5.40767]
[1743260451902,3.0293882,1849.4,1849.2,5.40767]
[1743260452070,3.0293882,1849.3,1849.2,5.40767]
[1743260452259,3.0293882,1849.4,1849.2,5.40767]
[1743260453698,3.0293882,1849.4,1849.2,10.81522]
[1743260454017,3.0293882,1849.4,1849.2,10.81515]
[1743260454168,3.0293882,1849.4,1849.2,5.40755]
[1743260454873,3.0293882,1849.4,1849.2,10.81512]
[1743260455288,5.80929539,1849.5,1849.1,10.5299]
[1743260455489,3.0293882,1849.3,1849.1,10.5299]
[1743260456276,3.0293882,1849.3,1849.0,5.40809]
[1743260456277,3.0293882,1849.2,1848.9,6.26713217]
[1743260456475,3.0293882,1849.1,1848.9,5.48193217]
[1743260456767,3.0293882,1849.0,1848.9,0.07334217]
[1743260457212,8.4377082,1849.0,1848.9,0.07334217]
[1743260457411,9.90249502,1849.0,1848.9,0.07334217]
[1743260459786,10.30645875,1849.0,1848.9,0.07334217]
[1743260460395,14.10855875,1849.0,1848.9,0.07334217]
[1743260460596,34.43539395,1849.0,1848.9,0.07334217]
[1743260460795,33.70427134,1849.0,1848.9,0.07334217]
[1743260460981,29.28585414,1849.0,1848.9,0.07334217]
[1743260461188,32.31524234,1849.0,1848.9,0.07334217]
[1743260461685,26.68079414,1849.0,1848.9,0.07334217]
[1743260462102,35.77018234,1849.0,1848.9,0.07334217]
[1743260462303,5.41066,1848.2,1848.1,0.05]
[1743260462516,5.41042,1848.3,1848.2,0.7852]
[1743260462517,3.0293882,1848.3,1848.2,0.7852]
[1743260462726,3.0293882,1848.9,1848.5,0.7852]
[1743260462904,6.46396373,1849.0,1848.7,5.4092]
[1743260462905,3.0293882,1849.0,1848.7,5.4092]
[1743260463115,6.2102,1849.1,1848.7,1.081864]
[1743260463422,3.0293882,1848.9,1848.7,1.081864]
[1743260463723,3.0293882,1849.0,1848.7,6.491054]
[1743260463904,3.0293882,1848.9,1848.6,5.40932]
[1743260465185,3.0293882,1848.8,1848.5,11.34598]
[1743260465375,3.0293882,1848.8,1848.6,5.15]
[1743260467122,3.0293882,1848.7,1848.6,5.15]
[1743260467292,8.74152702,1848.7,1848.3,6.24057]
[1743260467477,3.0293882,1848.6,1848.3,11.39057]
[1743260467677,6.20403,1848.9,1848.4,5.41002]
[1743260467915,6.0293882,1849.0,1848.6,6.23947]
[1743260468722,3.0293882,1848.8,1848.6,0.8302]
[1743260468903,3.0293882,1848.9,1848.6,0.8302]
[1743260469224,3.0293882,1848.8,1848.6,0.8302]
[1743260469714,3.0293882,1848.8,1848.6,6.23962]
[1743260469918,3.0293882,1848.9,1848.6,6.23962]
[1743260471216,11.4377982,1849.0,1848.6,6.23962]
[1743260471725,6.0293882,1849.0,1848.7,5.40909]
[1743260471898,0.40928321,1849.2,1848.8,5.40884]
[1743260471899,8.4372082,1849.2,1848.8,5.40884]
[1743260472083,3.0293882,1849.1,1848.8,5.40884]
[1743260473183,3.0293882,1849.1,1848.8,10.81765]
[1743260473385,3.0293882,1849.1,1848.8,12.414485]
[1743260473712,3.0293882,1849.1,1848.9,0.8302]
[1743260474618,6.60291507,1849.3,1848.9,6.23869]
[1743260474921,8.83690327,1849.3,1848.9,6.23869]
[1743260475527,3.0293882,1849.2,1848.9,6.23869]
[1743260477013,3.0293882,1849.2,1848.9,11.64712]
[1743260477307,3.0293882,1849.2,1848.9,11.6471]
[1743260477489,3.0293882,1849.2,1848.9,6.23863]
[1743260478625,3.0293882,1849.2,1848.9,6.23858]
[1743260479929,3.0293882,1849.2,1848.9,11.64703]
[1743260480317,3.0293882,1849.2,1848.9,6.23858]
[1743260480896,8.84111721,1849.3,1848.9,6.23858]
[1743260481125,3.0293882,1849.3,1849.0,5.40827]
[1743260483731,5.81454783,1849.4,1848.9,7.5632145]
[1743260483916,3.0293882,1849.0,1848.7,11.35324]
[1743260484121,3.0293882,1848.9,1848.7,5.9441]
[1743260484292,3.0293882,1849.1,1848.8,5.40874]
[1743260484832,3.0293882,1849.1,1848.8,10.81753]
[1743260485045,3.0293882,1849.1,1848.8,5.40874]
[1743260486037,3.0293882,1849.1,1848.8,10.8175]
[1743260486237,3.0293882,1849.1,1848.8,5.40874]
[1743260486397,9.90478602,1849.1,1848.7,11.35321]
[1743260487538,3.0293882,1849.0,1848.8,5.134]